fUSD/lending_fUSD_20251223
["ID","MTS","AMOUNT","RATE_DAILY","PERIOD"]
[399562043,1766487519471,-500.0,0.00046027,120]
[399562044,1766487519505,-650.99,0.00046027,120]
[399562045,1766487519540,-500.0,0.00046027,120]
[399562046,1766487519574,-500.0,0.00046027,120]
[399562047,1766487519609,-500.0,0.00046027,120]
[399562048,1766487519643,-1388.3,0.00046027,120]
[399562049,1766487519678,-500.0,0.00046027,120]
[399562050,1766487519713,-500.0,0.00046027,120]
[399562051,1766487519748,-500.0,0.00046027,120]
[399562052,1766487519782,-689.37,0.00046027,120]
[399562053,1766487519818,-1432.96,0.00046027,120]
[399562054,1766487519853,-1562.05,0.00046027,120]
[399562055,1766487519888,-500.0,0.00046027,120]
[399562056,1766487519924,-1196.29,0.00046027,120]
[399562057,1766487519959,-308.88674675,0.00046027,120]
[399562058,1766487519996,-1708.74,0.00046027,120]
[399562059,1766487520033,-500.0,0.00046027,120]
[399562060,1766487520069,-1298.55,0.00046027,120]
[399562061,1766487520104,-1689.23,0.00046027,120]
[399562062,1766487520139,-500.0,0.00046027,120]
[399562063,1766487520175,-1005.64,0.00046027,120]
[399562064,1766487520216,-500.0,0.00046027,60]
[399562065,1766487520259,-10397.11,0.00046027,120]
[399562066,1766487520301,-241.73451287,0.00046027,90]
[399562067,1766487520339,-765.9,0.00046027,120]
[399562068,1766487520377,-500.0,0.00046027,120]
[399562069,1766487520415,-500.0,0.00046027,120]
[399562070,1766487520452,-176.0,0.000461,120]
[399562071,1766487520489,-678.09881747,0.000463,120]
[399562072,1766487520524,-917.06,0.00046301,120]
[399562073,1766487520559,-343.09489335,0.00046301,120]
[399562074,1766487520593,-500.0,0.00046301,120]
[399562075,1766487520907,-500.0,0.00046301,120]
[399562076,1766487520950,-1369.07,0.00046301,120]
[399562077,1766487520996,-500.0,0.00046301,120]
[399562078,1766487521035,-500.0,0.00046301,120]
[399562079,1766487521076,-756.38,0.00046301,120]
[399562080,1766487521115,-500.0,0.00046301,120]
[399562081,1766487521158,-502.92200621,0.00046301,120]
[399562082,1766487521203,-418.5025006,0.00046301,120]
[399562083,1766487521249,-500.0,0.00046301,120]
[399562084,1766487521295,-450.31710436,0.00046301,120]
[399562085,1766487521338,-281.23933981,0.00046301,120]
[399562086,1766487521382,-500.0,0.00046301,120]
[399562087,1766487521429,-500.0,0.00046301,120]
[399562088,1766487521472,-518.21131433,0.00046301,120]
[399562089,1766487521513,-500.0,0.00046301,120]
[399562090,1766487521553,-559.82533065,0.00046301,120]
[399562091,1766487521592,-500.0,0.00046301,120]
[399562092,1766487521634,-500.0,0.00046301,120]
[399562093,1766487521674,-500.0,0.00046301,120]
[399562094,1766487521713,-500.0,0.00046301,120]
[399562095,1766487521752,-500.0,0.00046301,120]
[399562096,1766487521792,-500.0,0.00046301,120]
[399562097,1766487521831,-1039.08,0.00046301,120]
[399562098,1766487521871,-2118.86,0.00046301,120]
[399562099,1766487521909,-2017.38,0.00046301,120]
[399562100,1766487521946,-500.0,0.00046301,120]
[399562101,1766487521984,-232.58209695,0.00046301,120]
[399562102,1766487522023,-500.0,0.00046301,120]
[399562103,1766487522064,-500.0,0.00046301,120]
[399562104,1766487522102,-1042.93,0.00046301,120]
[399562105,1766487522140,-497.32912981,0.00046301,120]
[399562106,1766487522180,-391.66329742,0.00046301,120]
[399562107,1766487522224,-188.98584738,0.00046301,120]
[399562108,1766487522274,-282.93606949,0.00046301,120]
[399562109,1766487522315,-579.23158008,0.00046301,120]
[399562110,1766487522354,-500.0,0.00046301,120]
[399562111,1766487522393,-500.0,0.00046301,120]
[399562112,1766487522432,-500.0,0.00046301,120]
[399562113,1766487522470,-645.37828072,0.00046301,120]
[399562114,1766487522506,-500.0,0.00046301,120]
[399562115,1766487522542,-500.0,0.00046301,120]
[399562116,1766487522578,-500.0,0.00046301,120]
[399562117,1766487522614,-500.0,0.00046301,120]
[399562118,1766487522650,-281.96766045,0.00046301,120]
[399562119,1766487522687,-500.0,0.00046301,120]
[399562120,1766487522726,-500.0,0.00046301,120]
[399562121,1766487522764,-500.0,0.00046301,120]
[399562122,1766487522800,-1059.91,0.00046301,120]
[399562123,1766487522837,-582.18,0.00046301,120]
[399562124,1766487522879,-500.0,0.00046301,120]
[399562125,1766487522917,-500.0,0.00046301,120]
[399562126,1766487522954,-514.4,0.00046301,120]
[399562127,1766487522991,-500.0,0.00046301,120]
[399562128,1766487523027,-500.0,0.00046301,120]
[399562129,1766487523064,-500.0,0.00046301,120]
[399562130,1766487523102,-500.0,0.00046301,120]
[399562131,1766487523140,-500.0,0.00046301,120]
[399562132,1766487523179,-500.0,0.00046301,120]
[399562133,1766487523225,-500.0,0.00046301,120]
[399562134,1766487523266,-225.18071062,0.00046301,120]
[399562135,1766487523304,-500.0,0.00046301,120]
[399562136,1766487523340,-500.0,0.00046301,120]
[399562137,1766487523378,-500.0,0.00046301,120]
[399562138,1766487523417,-500.0,0.00046301,120]
[399562139,1766487523456,-500.0,0.00046301,120]
[399562140,1766487523494,-500.0,0.00046301,120]
[399562141,1766487523534,-500.0,0.00046301,120]
[399562142,1766487523572,-387.14084565,0.00046301,120]
[399562143,1766487523610,-191.94082945,0.00046301,120]
[399562144,1766487523645,-500.0,0.00046301,120]
[399562145,1766487523681,-500.0,0.00046301,120]
[399562146,1766487523717,-500.0,0.00046301,120]
[399562147,1766487523752,-500.0,0.00046301,120]
[399562148,1766487523790,-500.0,0.00046301,120]
[399562149,1766487523845,-500.0,0.00046301,120]
[399562150,1766487523895,-500.0,0.00046301,120]
[399562151,1766487523936,-500.0,0.00046301,120]
[399562152,1766487523973,-500.0,0.00046301,120]
[399562153,1766487524011,-500.0,0.00046301,120]
[399562154,1766487524048,-500.0,0.00046301,120]
[399562155,1766487524085,-1956.07,0.00046301,120]
[399562156,1766487524123,-500.0,0.00046301,120]
[399562157,1766487524163,-2752.43,0.00046301,120]
[399562158,1766487524204,-1842.03,0.00046301,120]
[399562159,1766487524244,-500.0,0.00046301,120]
[399562160,1766487524284,-500.0,0.00046301,120]
[399562161,1766487524321,-500.0,0.00046301,120]
[399562162,1766487524358,-500.0,0.00046301,120]
[399562163,1766487524395,-500.0,0.00046301,120]
[399562164,1766487524432,-500.0,0.00046301,120]
[399562165,1766487524469,-500.0,0.00046301,120]
[399562166,1766487524505,-500.0,0.00046301,120]
[399562167,1766487524546,-500.0,0.00046301,120]
[399562168,1766487524582,-500.0,0.00046301,120]
[399562169,1766487524618,-586.34,0.00046301,120]
[399562170,1766487525008,-500.0,0.00046301,120]
[399562171,1766487525051,-500.0,0.00046301,120]
[399562172,1766487525096,-500.0,0.00046301,120]
[399562173,1766487525135,-500.0,0.00046301,120]
[399562174,1766487525175,-500.0,0.00046301,120]
[399562175,1766487525217,-500.0,0.00046301,120]
[399562176,1766487525260,-697.63,0.00046301,120]
[399562177,1766487525303,-500.0,0.00046301,120]
[399562178,1766487525346,-500.0,0.00046301,120]
[399562179,1766487525388,-982.85,0.00046301,120]
[399562180,1766487525430,-171.02915474,0.00046301,120]
[399562181,1766487525467,-515.55941556,0.00046301,120]
[399562182,1766487525504,-500.0,0.00046301,120]
[399562183,1766487525540,-500.0,0.00046301,120]
[399562184,1766487525576,-500.0,0.00046301,120]
[399562185,1766487525612,-187.03422179,0.00046301,120]
[399562186,1766487525649,-268.64489742,0.00046301,120]
[399562187,1766487525687,-500.0,0.00046301,120]
[399562188,1766487525726,-500.0,0.00046301,120]
[399562189,1766487525764,-715.76,0.00046301,120]
[399562190,1766487525804,-500.0,0.00046301,120]
[399562191,1766487525842,-634.24435289,0.00046301,120]
[399562192,1766487525886,-500.0,0.00046301,120]
[399562193,1766487525924,-500.0,0.00046301,120]
[399562194,1766487525963,-500.0,0.00046301,120]
[399562195,1766487526001,-500.0,0.00046301,120]
[399562196,1766487526043,-400.42944433,0.00046301,120]
[399562197,1766487526083,-576.82456505,0.00046301,120]
[399562198,1766487526121,-500.0,0.00046301,120]
[399562199,1766487526166,-500.0,0.00046301,120]
[399562200,1766487526211,-500.0,0.00046301,120]
[399562201,1766487526255,-500.0,0.00046301,120]
[399562202,1766487526295,-500.0,0.00046301,120]
[399562203,1766487526333,-1723.75,0.00046301,120]
[399562204,1766487526373,-500.0,0.00046301,120]
[399562205,1766487526417,-500.0,0.00046301,120]
[399562206,1766487526461,-524.92,0.00046301,120]
[399562207,1766487526501,-906.89,0.00046301,60]
[399562208,1766487526540,-545.88,0.00046301,120]
[399562209,1766487526578,-500.0,0.00046301,120]
[399562210,1766487526616,-500.0,0.00046301,120]
[399562211,1766487526652,-500.0,0.00046301,120]
[399562212,1766487526689,-1273.67,0.00046301,120]
[399562213,1766487526728,-500.0,0.00046301,120]
[399562214,1766487526767,-500.0,0.00046301,120]
[399562215,1766487526809,-500.0,0.00046301,120]
[399562216,1766487526848,-368.85280121,0.00046301,120]
[399562217,1766487526884,-500.0,0.00046301,120]
[399562218,1766487526920,-616.17,0.00046301,120]
[399562219,1766487526957,-500.0,0.00046301,120]
[399562220,1766487526997,-779.23,0.00046301,120]
[399562221,1766487527035,-760.79,0.00046301,120]
[399562222,1766487527076,-500.0,0.00046301,120]
[399562223,1766487527119,-500.0,0.00046301,120]
[399562224,1766487527160,-417.44809769,0.00046301,120]
[399562225,1766487527201,-1543.48,0.00046301,120]
[399562226,1766487527242,-500.0,0.00046301,120]
[399562227,1766487527282,-680.4,0.00046301,120]
[399562228,1766487527320,-500.0,0.00046301,120]
[399562229,1766487527359,-1112.14,0.00046301,120]
[399562230,1766487527396,-500.0,0.00046301,120]
[399562231,1766487527434,-705.5,0.00046301,120]
[399562232,1766487527471,-500.0,0.00046301,120]
[399562233,1766487527508,-1242.77,0.00046301,120]
[399562234,1766487527544,-500.0,0.00046301,120]
[399562235,1766487527579,-500.0,0.00046301,120]
[399562236,1766487527614,-500.0,0.00046301,120]
[399562237,1766487527650,-500.0,0.00046301,120]
[399562238,1766487527686,-500.0,0.00046301,120]
[399562239,1766487527728,-500.0,0.00046301,120]
[399562240,1766487527765,-636.03,0.00046301,120]
[399562241,1766487527804,-222.16633916,0.00046301,120]
[399562242,1766487527840,-1402.13,0.00046301,120]
[399562243,1766487527879,-500.0,0.00046301,120]
[399562244,1766487527920,-500.0,0.00046301,120]
[399562245,1766487527962,-500.0,0.00046301,120]
[399562246,1766487528004,-1997.32,0.00046301,120]
[399562247,1766487528052,-1364.75,0.00046301,60]
[399562248,1766487528097,-500.0,0.00046301,120]
[399562249,1766487528142,-766.62,0.00046301,120]
[399562250,1766487528187,-500.0,0.00046301,120]
[399562251,1766487528234,-839.95,0.00046301,120]
[399562252,1766487528279,-500.0,0.00046301,120]
[399562253,1766487528318,-500.0,0.00046301,120]
[399562254,1766487528357,-522.41,0.00046301,120]
[399562255,1766487528397,-526.41669714,0.00046301,120]
[399562256,1766487528443,-500.0,0.00046301,120]
[399562257,1766487528482,-500.0,0.00046301,120]
[399562258,1766487528521,-500.0,0.00046301,120]
[399562259,1766487528557,-642.74,0.00046301,120]
[399562260,1766487528593,-500.0,0.00046301,120]
[399562261,1766487528629,-500.0,0.00046301,120]
[399562262,1766487528670,-500.0,0.00046301,120]
[399562263,1766487528707,-500.0,0.00046301,120]
[399562264,1766487528744,-500.0,0.00046301,120]
[399562265,1766487529147,-500.0,0.00046301,120]
[399562266,1766487529193,-500.0,0.00046301,120]
[399562267,1766487529238,-500.0,0.00046301,120]
[399562268,1766487529282,-500.0,0.00046301,120]
[399562269,1766487529323,-1016.98,0.00046301,120]
[399562270,1766487529374,-500.0,0.00046301,120]
[399562271,1766487529421,-566.15,0.00046301,120]
[399562272,1766487529463,-530.98969681,0.00046301,120]
[399562273,1766487529503,-500.0,0.00046301,120]
[399562274,1766487529542,-567.85,0.00046301,120]
[399562275,1766487529582,-500.0,0.00046301,120]
[399562276,1766487529626,-500.0,0.00046301,120]
[399562277,1766487529664,-500.0,0.00046301,120]
[399562278,1766487529703,-500.0,0.00046301,120]
[399562279,1766487529740,-500.0,0.00046301,120]
[399562280,1766487529780,-1210.55,0.00046301,120]
[399562281,1766487529820,-1710.74,0.00046301,120]
[399562282,1766487529858,-500.0,0.00046301,120]
[399562283,1766487529896,-1312.95,0.00046301,120]
[399562284,1766487529934,-1224.52,0.00046301,120]
[399562285,1766487529980,-1696.75,0.00046301,120]
[399562286,1766487530020,-500.0,0.00046301,120]
[399562287,1766487530059,-500.0,0.00046301,120]
[399562288,1766487530098,-500.0,0.00046301,120]
[399562289,1766487530137,-557.62,0.00046301,120]
[399562290,1766487530178,-526.92,0.00046301,120]
[399562291,1766487530221,-500.0,0.00046301,120]
[399562292,1766487530267,-1297.54,0.00046301,120]
[399562293,1766487530308,-555.83,0.00046301,120]
[399562294,1766487530350,-500.0,0.00046301,120]
[399562295,1766487530391,-475.77910014,0.00046301,120]
[399562296,1766487530433,-500.0,0.00046301,120]
[399562297,1766487530473,-873.07,0.00046301,120]
[399562298,1766487530511,-604.78,0.00046301,120]
[399562299,1766487530550,-2639.11,0.00046301,120]
[399562300,1766487530592,-600.1,0.00046301,120]
[399562301,1766487530628,-500.0,0.00046301,120]
[399562302,1766487530665,-500.0,0.00046301,120]
[399562303,1766487530706,-622.5,0.00046301,120]
[399562304,1766487530743,-500.0,0.00046301,120]
[399562305,1766487530779,-500.0,0.00046301,120]
[399562306,1766487530817,-500.0,0.00046301,120]
[399562307,1766487530855,-567.72,0.00046301,120]
[399562308,1766487530892,-500.0,0.00046301,120]
[399562309,1766487530936,-2830.44,0.00046301,120]
[399562310,1766487530973,-592.25,0.00046301,120]
[399562311,1766487531012,-711.79,0.00046301,120]
[399562312,1766487531051,-500.0,0.00046301,120]
[399562313,1766487531093,-500.0,0.00046301,120]
[399562314,1766487531136,-619.91,0.00046301,120]
[399562315,1766487531180,-500.0,0.00046301,120]
[399562316,1766487531227,-865.33,0.00046301,120]
[399562317,1766487531273,-500.0,0.00046301,60]
[399562318,1766487531316,-580.69,0.00046301,120]
[399562319,1766487531356,-500.0,0.00046301,120]
[399562320,1766487531396,-500.0,0.00046301,120]
[399562321,1766487531436,-865.61,0.00046301,120]
[399562322,1766487531479,-500.0,0.00046301,120]
[399562323,1766487531524,-1432.6,0.00046301,120]
[399562324,1766487531568,-500.0,0.00046301,120]
[399562325,1766487531610,-893.55,0.00046301,120]
[399562326,1766487531651,-500.0,0.00046301,120]
[399562327,1766487531691,-1688.71,0.00046301,120]
[399562328,1766487531731,-905.29,0.00046301,120]
[399562329,1766487531770,-632.22,0.00046301,120]
[399562330,1766487531810,-233.75069464,0.00046301,120]
[399562331,1766487531851,-592.93,0.00046301,120]
[399562332,1766487531890,-519.34,0.00046301,120]
[399562333,1766487531929,-1835.93,0.00046301,120]
[399562334,1766487531969,-697.2,0.00046301,120]
[399562335,1766487532010,-878.66,0.00046301,120]
[399562336,1766487532050,-500.0,0.00046301,120]
[399562337,1766487532090,-500.0,0.00046301,120]
[399562338,1766487532128,-913.04,0.00046301,120]
[399562339,1766487532168,-500.0,0.00046301,120]
[399562340,1766487532213,-751.1,0.00046301,120]
[399562341,1766487532259,-500.0,0.00046301,120]
[399562342,1766487532301,-1075.62,0.00046301,60]
[399562343,1766487532342,-500.0,0.00046301,120]
[399562344,1766487532384,-1328.41,0.00046301,120]
[399562345,1766487532428,-500.0,0.00046301,120]
[399562346,1766487532468,-500.0,0.00046301,120]
[399562347,1766487532505,-500.0,0.00046301,120]
[399562348,1766487532542,-500.0,0.00046301,120]
[399562349,1766487532578,-599.0,0.00046301,120]
[399562350,1766487532615,-886.86,0.00046301,120]
[399562351,1766487532653,-500.0,0.00046301,120]
[399562352,1766487532688,-500.0,0.00046301,120]
[399562353,1766487532726,-560.74,0.00046301,120]
[399562354,1766487532766,-500.0,0.00046301,120]
[399562355,1766487532802,-483.36910491,0.00046301,120]
[399562356,1766487532840,-1433.05,0.00046301,120]
[399562357,1766487532876,-500.0,0.00046301,120]
[399562358,1766487532912,-500.0,0.00046301,120]
[399562359,1766487532948,-500.0,0.00046301,120]
[399562360,1766487533285,-2265.89,0.00046301,120]
[399562361,1766487533326,-2082.47,0.00046301,120]
[399562362,1766487533368,-1141.51,0.00046301,120]
[399562363,1766487533411,-500.0,0.00046301,120]
[399562364,1766487533457,-1850.23,0.00046301,120]
[399562365,1766487533497,-500.0,0.00046301,120]
[399562366,1766487533540,-1211.32,0.00046301,120]
[399562367,1766487533576,-1291.8,0.00046301,120]
[399562368,1766487533614,-819.42,0.00046301,120]
[399562369,1766487533655,-2579.35,0.00046301,120]
[399562370,1766487533694,-500.0,0.00046301,120]
[399562371,1766487533731,-515.09990518,0.00046301,120]
[399562372,1766487533771,-500.0,0.00046301,120]
[399562373,1766487533809,-1083.91,0.00046301,120]
[399562374,1766487533847,-2453.97,0.00046301,120]
[399562375,1766487533887,-1697.27,0.00046301,120]
[399562376,1766487533929,-1279.54,0.00046301,120]
[399562377,1766487533983,-500.0,0.00046301,120]
[399562378,1766487534030,-500.0,0.00046301,120]
[399562379,1766487534076,-730.24,0.00046301,120]
[399562380,1766487534117,-500.0,0.00046301,120]
[399562381,1766487534162,-751.57,0.00046301,120]
[399562382,1766487534203,-500.0,0.00046301,120]
[399562383,1766487534244,-1053.31,0.00046301,120]
[399562384,1766487534285,-516.65,0.00046301,120]
[399562385,1766487534323,-500.0,0.00046301,120]
[399562386,1766487534362,-500.0,0.00046301,120]
[399562387,1766487534399,-847.16,0.00046301,120]
[399562388,1766487534438,-1188.06,0.00046301,120]
[399562389,1766487534475,-500.0,0.00046301,120]
[399562390,1766487534511,-626.28,0.00046301,120]
[399562391,1766487534548,-500.0,0.00046301,120]
[399562392,1766487534585,-500.0,0.00046301,120]
[399562393,1766487534622,-500.0,0.00046301,120]
[399562394,1766487534660,-1482.2,0.00046301,120]
[399562395,1766487534697,-187.10284032,0.00046301,120]
[399562396,1766487534736,-570.04,0.00046301,120]
[399562397,1766487534773,-612.78,0.00046301,120]
[399562398,1766487534810,-500.0,0.00046301,120]
[399562399,1766487534846,-1932.35,0.00046301,120]
[399562400,1766487534882,-1255.16,0.00046301,120]
[399562401,1766487534919,-1678.76,0.00046301,120]
[399562402,1766487534958,-502.01605814,0.00046301,120]
[399562403,1766487534999,-1569.44,0.00046301,120]
[399562404,1766487535038,-1870.13,0.00046301,120]
[399562405,1766487535076,-511.95514886,0.00046301,120]
[399562406,1766487535113,-500.0,0.00046301,120]
[399562407,1766487535152,-500.0,0.00046301,120]
[399562408,1766487535200,-500.0,0.00046301,120]
[399562409,1766487535242,-500.0,0.00046301,120]
[399562410,1766487535285,-500.0,0.00046301,120]
[399562411,1766487535326,-2182.76,0.00046301,120]
[399562412,1766487535368,-500.0,0.00046301,120]
[399562413,1766487535410,-500.0,0.00046301,120]
[399562414,1766487535451,-500.0,0.00046301,120]
[399562415,1766487535488,-1062.94,0.00046301,120]
[399562416,1766487535526,-500.0,0.00046301,120]
[399562417,1766487535565,-500.0,0.00046301,120]
[399562418,1766487535604,-500.0,0.00046301,120]
[399562419,1766487535644,-500.0,0.00046301,120]
[399562420,1766487535684,-503.44,0.00046301,120]
[399562421,1766487535722,-595.91,0.00046301,120]
[399562422,1766487535762,-811.74,0.00046301,120]
[399562423,1766487535800,-500.0,0.00046301,120]
[399562424,1766487535839,-500.0,0.00046301,120]
[399562425,1766487535876,-650.99,0.00046301,120]
[399562426,1766487535916,-500.0,0.00046301,120]
[399562427,1766487535954,-500.0,0.00046301,120]
[399562428,1766487535991,-500.0,0.00046301,120]
[399562429,1766487536031,-1388.3,0.00046301,120]
[399562430,1766487536072,-500.0,0.00046301,120]
[399562431,1766487536113,-500.0,0.00046301,120]
[399562432,1766487536153,-500.0,0.00046301,120]
[399562433,1766487536203,-689.37,0.00046301,120]
[399562434,1766487536248,-1432.96,0.00046301,120]
[399562435,1766487536292,-1562.05,0.00046301,120]
[399562436,1766487536335,-500.0,0.00046301,120]
[399562437,1766487536375,-1196.29,0.00046301,120]
[399562438,1766487536416,-1708.74,0.00046301,120]
[399562439,1766487536458,-500.0,0.00046301,120]
[399562440,1766487536514,-1298.55,0.00046301,120]
[399562441,1766487536569,-1689.23,0.00046301,120]
[399562442,1766487536623,-500.0,0.00046301,120]
[399562443,1766487536678,-1005.64,0.00046301,120]
[399562444,1766487536735,-500.0,0.00046301,60]
[399562445,1766487536790,-765.9,0.00046301,120]
[399562446,1766487536845,-10397.11,0.00046301,120]
[399562447,1766487536895,-500.0,0.00046301,120]
[399562448,1766487536946,-500.0,0.00046301,120]
[399562449,1766487536998,-200.0,0.00046427,120]
[399562450,1766487537049,-1200.0,0.000465,120]
[399562451,1766487537099,-157.0,0.000465,120]
[399562452,1766487537146,-6000.0,0.000465,120]
[399562453,1766487537204,-917.06,0.00046575,120]
[399562454,1766487537261,-500.0,0.00046575,120]
[399562455,1766487537320,-395.57178977,0.00046575,120]
[399562456,1766487537374,-1369.07,0.00046575,120]
[399562457,1766487537427,-500.0,0.00046575,120]
[399562458,1766487537478,-500.0,0.00046575,120]
[399562459,1766487537527,-756.38,0.00046575,120]
[399562460,1766487537576,-500.0,0.00046575,120]
[399562461,1766487537623,-285.31712037,0.00046575,120]
[399562462,1766487537682,-628.27346382,0.00046575,120]
[399562463,1766487537735,-500.0,0.00046575,120]
[399562464,1766487537786,-500.0,0.00046575,120]
[399562465,1766487537834,-168.02930657,0.00046575,120]
[399562466,1766487537882,-500.0,0.00046575,120]
[399562467,1766487537929,-299.77996958,0.00046575,120]
[399562468,1766487537978,-500.0,0.00046575,120]
[399562469,1766487538026,-500.0,0.00046575,120]
[399562470,1766487538076,-500.0,0.00046575,120]
[399562471,1766487538126,-1039.08,0.00046575,120]
[399562472,1766487538178,-2118.86,0.00046575,120]
[399562473,1766487538231,-2017.38,0.00046575,120]
[399562474,1766487538282,-640.72231953,0.00046575,120]
[399562475,1766487538329,-500.0,0.00046575,120]
[399562476,1766487538377,-500.0,0.00046575,120]
[399562477,1766487538432,-1042.93,0.00046575,120]
[399562478,1766487538484,-500.0,0.00046575,120]
[399562479,1766487538530,-500.0,0.00046575,120]
[399562480,1766487538575,-500.0,0.00046575,120]
[399562481,1766487538619,-500.0,0.00046575,120]
[399562482,1766487538667,-500.0,0.00046575,120]
[399562483,1766487538712,-500.0,0.00046575,120]
[399562484,1766487538756,-500.0,0.00046575,120]
[399562485,1766487538802,-500.0,0.00046575,120]
[399562486,1766487538847,-251.70364069,0.00046575,120]
[399562487,1766487538893,-500.0,0.00046575,120]
[399562488,1766487538937,-1059.91,0.00046575,120]
[399562489,1766487538984,-582.18,0.00046575,120]
[399562490,1766487539033,-500.0,0.00046575,120]
[399562491,1766487539082,-500.0,0.00046575,120]
[399562492,1766487539130,-514.4,0.00046575,120]
[399562493,1766487539178,-597.2580711,0.00046575,120]
[399562494,1766487539230,-500.0,0.00046575,120]
[399562495,1766487539282,-599.08730505,0.00046575,120]
[399562496,1766487539332,-500.0,0.00046575,120]
[399562497,1766487539379,-500.0,0.00046575,120]
[399562498,1766487539429,-500.0,0.00046575,120]
[399562499,1766487539479,-500.0,0.00046575,120]
[399562500,1766487539527,-216.94194172,0.00046575,120]
[399562501,1766487539572,-500.0,0.00046575,120]
[399562502,1766487539617,-500.0,0.00046575,120]
[399562503,1766487539665,-500.0,0.00046575,120]
[399562504,1766487539715,-519.43730428,0.00046575,120]
[399562505,1766487539754,-628.94293937,0.00046575,120]
[399562506,1766487539793,-500.0,0.00046575,120]
[399562507,1766487539834,-495.63466959,0.00046575,120]
[399562508,1766487539877,-500.0,0.00046575,120]
[399562509,1766487539917,-500.0,0.00046575,120]
[399562510,1766487539959,-500.0,0.00046575,120]
[399562511,1766487540001,-285.83521259,0.00046575,120]
[399562512,1766487540046,-500.0,0.00046575,120]
[399562513,1766487540099,-500.0,0.00046575,120]
[399562514,1766487540161,-500.0,0.00046575,120]
[399562515,1766487540227,-500.0,0.00046575,120]
[399562516,1766487540281,-500.0,0.00046575,120]
[399562517,1766487540330,-500.0,0.00046575,120]
[399562518,1766487540377,-1956.07,0.00046575,120]
[399562519,1766487540425,-500.0,0.00046575,120]
[399562520,1766487540474,-2752.43,0.00046575,120]
[399562521,1766487540522,-1842.03,0.00046575,120]
[399562522,1766487540564,-500.0,0.00046575,120]
[399562523,1766487540611,-547.16567146,0.00046575,120]
[399562524,1766487540653,-500.0,0.00046575,120]
[399562525,1766487541421,-500.0,0.00046575,120]
[399562526,1766487541495,-500.0,0.00046575,120]
[399562527,1766487541541,-500.0,0.00046575,120]
[399562528,1766487541586,-500.0,0.00046575,120]
[399562529,1766487541631,-500.0,0.00046575,120]
[399562530,1766487541674,-500.0,0.00046575,120]
[399562531,1766487541717,-500.0,0.00046575,120]
[399562532,1766487541759,-586.34,0.00046575,120]
[399562533,1766487541802,-500.0,0.00046575,120]
[399562534,1766487541844,-500.0,0.00046575,120]
[399562535,1766487541887,-500.0,0.00046575,120]
[399562536,1766487541930,-500.0,0.00046575,120]
[399562537,1766487541971,-500.0,0.00046575,120]
[399562538,1766487542009,-500.0,0.00046575,120]
[399562539,1766487542050,-697.63,0.00046575,120]
[399562540,1766487542089,-500.0,0.00046575,120]
[399562541,1766487542134,-500.0,0.00046575,120]
[399562542,1766487542176,-982.85,0.00046575,120]